[Event "Gaprindashvili Cup Women I Stage 2020"]
[Site "Online"]
[Date "2020.11.04"]
[Round "9.8"]
[White "Limar, Maria"]
[Black "Gvatua, Mariam"]
[Result "0-1"]
[ECO "B70"]
[WhiteElo "1229"]
[BlackElo "1343"]
[Annotator "NA"]
[PlyCount "236"]
[EventDate "2020.11.04"]
[EventType "swiss"]
[SourceTitle "playchess.com"]
[Source "ChessBase"]
[SourceQuality "1"]
[TimeControl "1500+5"]

1. e4 {[%emt 0:00:03]} c5 {[%emt 0:00:03]} 2. Nf3 {[%emt 0:00:05]} d6 {[%emt 0:00:01]} 3. d4 {[%emt 0:00:02]} cxd4 {[%emt 0:00:02]} 4. Nxd4 {[%emt 0:00:02]} Nf6 {[%emt 0:00:03]} 5. Nc3 {[%emt 0:00:02]} a6 {[%emt 0:00:18]} 6. a4 {[%emt 0:00:50]} g6 {[%emt 0:00:04]} 7. Bc4 {[%emt 0:00:36]} Bg7 {[%emt 0:00:04]} 8. O-O {[%emt 0:00:09]} O-O {[%emt 0:00:03]} 9. h3 {[%emt 0:00:10]} Nc6 {[%emt 0:00:44]} 10. Be3 {[%emt 0:00:14]} Bd7 {[%emt 0:00:17]} 11. Qd2 {[%emt 0:01:08]} Nxd4 {[%emt 0:00:27]} 12. Bxd4 {[%emt 0:00:04]} Bc6 {[%emt 0:00:05]} 13. Bd3 {[%emt 0:01:01]} d5 {[%emt 0:00:57]} 14. exd5 {[%emt 0:01:07]} Nxd5 {[%emt 0:00:11]} 15. Bxg7 {[%emt 0:00:08]} Kxg7 {[%emt 0:00:10]} 16. Nxd5 {[%emt 0:00:37]} Qxd5 {[%emt 0:00:05]} 17. f3 {[%emt 0:02:17]} Qd4+ {[%emt 0:00:13]} 18. Kh2 {[%emt 0:00:27]} Qxb2 {[%emt 0:00:10]} 19. Rfe1 {[%emt 0:00:22]} e6 {[%emt 0:00:08]} 20. Qg5 {[%emt 0:00:36]} Qd4 {[%emt 0:00:19]} 21. Qe5+ {[%emt 0:00:43]} Qxe5+ {[%emt 0:00:04]} 22. Rxe5 {[%emt 0:00:03]} Rfd8 {[%emt 0:00:02]} 23. a5 {[%emt 0:00:27]} Rd4 {[%emt 0:00:07]} 24. Rc5 {[%emt 0:00:26]} Rad8 {[%emt 0:00:15]} 25. Rb1 {[%emt 0:01:23]} R4d5 {[%emt 0:00:08]} 26. Rxd5 {[%emt 0:00:46]} Rxd5 {[%emt 0:00:06]} 27. Ra1 {[%emt 0:00:21]} Bb5 {[%emt 0:00:37]} 28. Bxb5 {[%emt 0:01:19]} Rxb5 {[%emt 0:00:04]} 29. Ra2 {[%emt 0:01:18]} Rc5 {[%emt 0:00:08]} 30. Kg3 {[%emt 0:00:19]} Kf6 {[%emt 0:01:05]} 31. Kf2 {[%emt 0:01:28]} Ke7 {[%emt 0:00:28]} 32. Ke3 {[%emt 0:01:09]} Kd6 {[%emt 0:00:12]} 33. Kd4 {[%emt 0:02:37]} e5+ {[%emt 0:00:35]} 34. Kd3 {[%emt 0:00:15]} f5 {[%emt 0:00:09]} 35. c4 {[%emt 0:02:28]} Kc7 {[%emt 0:00:24]} 36. Kc3 {[%emt 0:00:30]} Rc6 {[%emt 0:00:08]} 37. Kb4 {[%emt 0:00:18]} Rd6 {[%emt 0:00:06]} 38. Re2 {[%emt 0:00:43]} Re6 {[%emt 0:00:24]} 39. Kc5 {[%emt 0:00:11]} Kd7 {[%emt 0:00:26]} 40. Kd5 {[%emt 0:00:19]} Rd6+ {[%emt 0:00:04]} 41. Kc5 {[%emt 0:00:03]} Ke6 {[%emt 0:00:19]} 42. Kb4 {[%emt 0:00:36]} Rc6 {[%emt 0:00:04]} 43. c5 {[%emt 0:00:24]} Rc7 {[%emt 0:00:20]} 44. Kc4 {[%emt 0:00:15]} Rd7 {[%emt 0:00:07]} 45. Kb4 {[%emt 0:00:15]} Rd4+ {[%emt 0:00:09]} 46. Kc3 {[%emt 0:00:05]} Rd1 {[%emt 0:01:01]} 47. Rb2 {[%emt 0:00:05]} Rd7 {[%emt 0:00:41]} 48. Kc4 {[%emt 0:00:05]} Rd4+ {[%emt 0:00:07]} 49. Kc3 {[%emt 0:00:03]} Rd7 {[%emt 0:00:02]} 50. Kc4 {[%emt 0:00:03]} Ke7 {[%emt 0:00:15]} 51. Re2 {[%emt 0:00:09]} Kf6 {[%emt 0:00:12]} 52. Rb2 {[%emt 0:00:05]} Ke7 {[%emt 0:00:32]} 53. Re2 {[%emt 0:00:04]} Ke6 {[%emt 0:00:22]} 54. Rb2 {[%emt 0:00:08]} Kf7 {[%emt 0:01:47]} 55. Re2 {[%emt 0:00:04]} Rd4+ {[%emt 0:00:11]} 56. Kb3 {[%emt 0:00:06]} Kf6 {[%emt 0:00:11]} 57. Kc3 {[%emt 0:00:06]} Ra4 {[%emt 0:00:28]} 58. Rb2 {[%emt 0:00:05]} Rxa5 {[%emt 0:00:09]} 59. Kc4 {[%emt 0:00:04]} Ra4+ {[%emt 0:00:54]} 60. Kc3 {[%emt 0:00:06]} Ra3+ {[%emt 0:00:44]} 61. Kc4 {[%emt 0:00:03]} Ra4+ {[%emt 0:00:48]} 62. Kc3 {[%emt 0:00:03]} Ra5 {[%emt 0:00:31]} 63. Kc4 {[%emt 0:00:07]} Rb5 {[%emt 0:00:17]} 64. Rd2 {[%emt 0:00:06]} Rb1 {[%emt 0:00:20]} 65. Rd6+ {[%emt 0:00:05]} Ke7 {[%emt 0:00:12]} 66. Rd5 {[%emt 0:00:05]} Re1 {[%emt 0:01:31]} 67. Rd2 {[%emt 0:00:06]} e4 {[%emt 0:00:44]} 68. fxe4 {[%emt 0:00:05]} Rxe4+ {[%emt 0:00:02]} 69. Kc3 {[%emt 0:00:04]} Kf6 {[%emt 0:00:27]} 70. Rd7 {[%emt 0:00:05]} Re7 {[%emt 0:00:07]} 71. Rd2 {[%emt 0:00:05]} h6 {[%emt 0:00:29]} 72. Rd6+ {[%emt 0:00:06]} Kf7 {[%emt 0:00:02]} 73. Rd2 {[%emt 0:00:03]} Rc7 {[%emt 0:01:00]} 74. Kb4 {[%emt 0:00:05]} Ke7 {[%emt 0:00:44]} 75. Rd6 {[%emt 0:00:05]} Rc6 {[%emt 0:00:46]} 76. Rd2 {[%emt 0:00:05]} Re6 {[%emt 0:00:14]} 77. Kc4 {[%emt 0:00:07]} Re4+ {[%emt 0:00:44]} 78. Kc3 {[%emt 0:00:03]} Re1 {[%emt 0:00:25]} 79. Kc4 {[%emt 0:00:06]} Re6 {[%emt 0:00:08]} 80. Kb4 {[%emt 0:00:04]} Rc6 {[%emt 0:00:19]} 81. Rd3 {[%emt 0:00:07]} Re6 {[%emt 0:00:16]} 82. Rd2 {[%emt 0:00:03]} g5 {[%emt 0:00:11]} 83. Ka5 {[%emt 0:00:06]} Rc6 {[%emt 0:00:22]} 84. Kb4 {[%emt 0:00:02]} f4 {[%emt 0:00:09]} 85. Rd3 {[%emt 0:00:07]} b6 {[%emt 0:00:44]} 86. cxb6 {[%emt 0:00:05]} Rxb6+ {[%emt 0:00:02]} 87. Kc3 {[%emt 0:00:06]} Re6 {[%emt 0:00:02]} 88. Rd2 {[%emt 0:00:04]} Kf6 {[%emt 0:00:02]} 89. Kb4 {[%emt 0:00:04]} h5 {[%emt 0:00:03]} 90. Kc3 {[%emt 0:00:06]} Re3+ {[%emt 0:00:03]} 91. Kb4 {[%emt 0:00:05]} Re6 {[%emt 0:00:05]} 92. Ka5 {[%emt 0:00:05]} Kf5 {[%emt 0:00:05]} 93. Kb4 {[%emt 0:00:05]} Re5 {[%emt 0:00:04]} 94. Kc3 {[%emt 0:00:04]} a5 {[%emt 0:00:02]} 95. Kb3 {[%emt 0:00:04]} g4 {[%emt 0:00:06]} 96. hxg4+ {[%emt 0:00:06]} hxg4 {[%emt 0:00:02]} 97. Ka4 {[%emt 0:00:02]} Kg5 {[%emt 0:00:06]} 98. Rf2 {[%emt 0:00:07]} Rf5 {[%emt 0:00:03]} 99. Kb3 {[%emt 0:00:05]} Kh4 {[%emt 0:00:05]} 100. Ka4 {[%emt 0:00:06]} Kg3 {[%emt 0:00:04]} 101. Ra2 {[%emt 0:00:04]} f3 {[%emt 0:00:05]} 102. gxf3 {[%emt 0:00:05]} gxf3 {[%emt 0:00:02]} 103. Ra1 {[%emt 0:00:05]} Kg2 {[%emt 0:00:02]} 104. Kb3 {[%emt 0:00:03]} f2 {[%emt 0:00:02]} 105. Ra2 {[%emt 0:00:03]} Kg1 {[%emt 0:00:02]} 106. Ra1+ {[%emt 0:00:07]} f1=Q {[%emt 0:00:03]} 107. Rxf1+ {[%emt 0:00:03]} Kxf1 {[%emt 0:00:05]} 108. Ka4 {[%emt 0:00:03]} Rc5 {[%emt 0:00:07]} 109. Kb3 {[%emt 0:00:04]} Ke2 {[%emt 0:00:02]} 110. Ka4 {[%emt 0:00:03]} Kd2 {[%emt 0:00:04]} 111. Kb3 {[%emt 0:00:03]} Rc8 {[%emt 0:00:06]} 112. Ka4 {[%emt 0:00:03]} Kc3 {[%emt 0:00:02]} 113. Kxa5 {[%emt 0:00:04]} Rb8 {[%emt 0:00:02]} 114. Ka6 {[%emt 0:00:04]} Rb1 {[%emt 0:00:02]} 115. Ka7 {[%emt 0:00:03]} Kc4 {[%emt 0:00:02]} 116. Ka8 {[%emt 0:00:03]} Kc5 {[%emt 0:00:01]} 117. Ka7 {[%emt 0:00:03]} Kc6 {[%emt 0:00:03]} 118. Ka8 {[%emt 0:00:02]} Kc7 {[%emt 0:00:02]} 0-1

[Event "Gaprindashvili Cup Women I Stage 2020"]
[Site "Online"]
[Date "2020.11.04"]
[Round "9.9"]
[White "Limar, Ana"]
[Black "Abuladze, Natali"]
[Result "1-0"]
[ECO "B90"]
[WhiteElo "1312"]
[BlackElo "1049"]
[Annotator "NA"]
[PlyCount "183"]
[EventDate "2020.11.04"]
[EventType "swiss"]
[SourceTitle "playchess.com"]
[Source "ChessBase"]
[SourceQuality "1"]
[TimeControl "1500+5"]

1. e4 {[%emt 0:00:06]} c5 {[%emt 0:00:02]} 2. Nf3 {[%emt 0:00:03]} d6 {[%emt 0:00:02]} 3. d4 {[%emt 0:00:03]} cxd4 {[%emt 0:00:02]} 4. Nxd4 {[%emt 0:00:02]} Nf6 {[%emt 0:00:03]} 5. Nc3 {[%emt 0:00:04]} a6 {[%emt 0:00:03]} 6. a4 {[%emt 0:00:32]} e5 {[%emt 0:00:14]} 7. Nf3 {[%emt 0:00:10]} Be7 {[%emt 0:00:47]} 8. Bg5 {[%emt 0:01:47]} h6 {[%emt 0:00:19]} 9. Bxf6 {[%emt 0:00:10]} Bxf6 {[%emt 0:00:07]} 10. Nd5 {[%emt 0:00:21]} Be7 {[%emt 0:04:19]} 11. Bc4 {[%emt 0:04:36]} Be6 {[%emt 0:00:24]} 12. O-O {[%emt 0:00:37]} O-O {[%emt 0:00:13]} 13. Qd2 {[%emt 0:01:23]} Re8 {[%emt 0:03:48]} 14. Rad1 {[%emt 0:00:43]} Bf8 {[%emt 0:00:20]} 15. Qe3 {[%emt 0:03:04]} Nd7 {[%emt 0:00:51]} 16. Nd2 {[%emt 0:02:01]} Bxd5 {[%emt 0:04:07]} 17. Bxd5 {[%emt 0:00:19]} Qc7 {[%emt 0:00:07]} 18. Qb3 {[%emt 0:02:29]} Nc5 {[%emt 0:00:14]} 19. Qb4 {[%emt 0:00:16]} Rac8 {[%emt 0:00:23]} 20. Nb3 {[%emt 0:02:40]} b6 {[%emt 0:02:57]} 21. Qc4 {[%emt 0:01:07]} Nxb3 {[%emt 0:00:27]} 22. Qxb3 {[%emt 0:00:09]} Rb8 {[%emt 0:00:40]} 23. f4 {[%emt 0:01:07]} Re7 {[%emt 0:01:44]} 24. Rd3 {[%emt 0:00:43]} Rd8 {[%emt 0:01:09]} 25. Rdf3 {[%emt 0:00:23]} Rdd7 {[%emt 0:00:17]} 26. fxe5 {[%emt 0:00:26]} dxe5 {[%emt 0:00:09]} 27. Rc3 {[%emt 0:00:19]} Qa7 {[%emt 0:00:50]} 28. Rc6 {[%emt 0:00:28]} b5+ {[%emt 0:00:05]} 29. Kh1 {[%emt 0:00:07]} bxa4 {[%emt 0:00:06]} 30. Qg3 {[%emt 0:00:31]} Kh8 {[%emt 0:00:26]} 31. Rc3 {[%emt 0:00:32]} f6 {[%emt 0:00:25]} 32. Rc8 {[%emt 0:00:09]} Rf7 {[%emt 0:01:02]} 33. Bxf7 {[%emt 0:00:04]} Rxf7 {[%emt 0:00:02]} 34. Qg6 {[%emt 0:00:02]} Qb7 {[%emt 0:00:09]} 35. Rc3 {[%emt 0:00:14]} Bb4 {[%emt 0:00:06]} 36. Rd3 {[%emt 0:00:03]} Rf8 {[%emt 0:00:08]} 37. h3 {[%emt 0:00:04]} Bc5 {[%emt 0:00:07]} 38. Rg3 {[%emt 0:00:03]} Rg8 {[%emt 0:00:05]} 39. Ra1 {[%emt 0:00:04]} Qd7 {[%emt 0:00:04]} 40. Rf1 {[%emt 0:00:05]} Be7 {[%emt 0:00:09]} 41. Kh2 {[%emt 0:00:08]} Qb5 {[%emt 0:00:04]} 42. Rb1 {[%emt 0:00:07]} a3 {[%emt 0:00:08]} 43. b3 {[%emt 0:00:04]} a2 {[%emt 0:00:04]} 44. Ra1 {[%emt 0:00:02]} Qa5 {[%emt 0:00:03]} 45. Rf3 {[%emt 0:00:05]} Qa3 {[%emt 0:00:06]} 46. Rff1 {[%emt 0:00:03]} Qb2 {[%emt 0:00:06]} 47. Qf7 {[%emt 0:00:04]} Bd8 {[%emt 0:00:18]} 48. Qc4 {[%emt 0:00:03]} Bb6 {[%emt 0:00:11]} 49. Qc6 {[%emt 0:00:12]} Bd4 {[%emt 0:00:13]} 50. Qxa6 {[%emt 0:00:03]} Qxc2 {[%emt 0:00:05]} 51. Qxa2 {[%emt 0:00:03]} Qxe4 {[%emt 0:00:09]} 52. Rae1 {[%emt 0:00:03]} Qd5 {[%emt 0:00:03]} 53. Qb1 {[%emt 0:00:07]} Bc5 {[%emt 0:00:07]} 54. b4 {[%emt 0:00:04]} Bd4 {[%emt 0:00:04]} 55. Rf3 {[%emt 0:00:08]} Qd6 {[%emt 0:00:04]} 56. Rb3 {[%emt 0:00:04]} e4+ {[%emt 0:00:04]} 57. Kh1 {[%emt 0:00:01]} f5 {[%emt 0:00:10]} 58. b5 {[%emt 0:00:03]} Bb6 {[%emt 0:00:03]} 59. Rd1 {[%emt 0:00:04]} Qe5 {[%emt 0:00:03]} 60. Qb2 {[%emt 0:00:16]} Qe6 {[%emt 0:00:07]} 61. Qc3 {[%emt 0:00:06]} f4 {[%emt 0:00:05]} 62. Qb4 {[%emt 0:00:03]} Re8 {[%emt 0:00:06]} 63. Rd6 {[%emt 0:00:03]} Qe5 {[%emt 0:00:04]} 64. Rxb6 {[%emt 0:00:03]} e3 {[%emt 0:00:02]} 65. Rc6 {[%emt 0:00:06]} e2 {[%emt 0:00:04]} 66. Rc1 {[%emt 0:00:02]} e1=Q+ {[%emt 0:00:07]} 67. Rxe1 {[%emt 0:00:03]} Qxe1+ {[%emt 0:00:02]} 68. Qxe1 {[%emt 0:00:03]} Rxe1+ {[%emt 0:00:03]} 69. Kh2 {[%emt 0:00:01]} Re8 {[%emt 0:00:02]} 70. b6 {[%emt 0:00:03]} Rb8 {[%emt 0:00:02]} 71. Kg1 {[%emt 0:00:03]} g5 {[%emt 0:00:03]} 72. Kf2 {[%emt 0:00:03]} Kg7 {[%emt 0:00:01]} 73. Kf3 {[%emt 0:00:03]} Kf6 {[%emt 0:00:02]} 74. Ke4 {[%emt 0:00:02]} Ke6 {[%emt 0:00:01]} 75. b7 {[%emt 0:00:16]} h5 {[%emt 0:00:12]} 76. Rb6+ {[%emt 0:00:08]} Kd7 {[%emt 0:00:05]} 77. Kf5 {[%emt 0:00:02]} Kc7 {[%emt 0:00:03]} 78. Rb1 {[%emt 0:00:07]} Rxb7 {[%emt 0:00:08]} 79. Rxb7+ {[%emt 0:00:03]} Kxb7 {[%emt 0:00:02]} 80. Kxg5 {[%emt 0:00:03]} Kc6 {[%emt 0:00:08]} 81. Kxf4 {[%emt 0:00:05]} Kd5 {[%emt 0:00:05]} 82. Kg5 {[%emt 0:00:02]} Ke5 {[%emt 0:00:02]} 83. Kxh5 {[%emt 0:00:03]} Kf6 {[%emt 0:00:03]} 84. g4 {[%emt 0:00:03]} Kg7 {[%emt 0:00:02]} 85. Kg5 {[%emt 0:00:03]} Kg8 {[%emt 0:00:03]} 86. Kf6 {[%emt 0:00:02]} Kf8 {[%emt 0:00:02]} 87. g5 {[%emt 0:00:02]} Kg8 {[%emt 0:00:02]} 88. Kg6 {[%emt 0:00:05]} Kf8 {[%emt 0:00:03]} 89. Kh7 {[%emt 0:00:03]} Kf7 {[%emt 0:00:02]} 90. g6+ {[%emt 0:00:02]} Kf8 {[%emt 0:00:02]} 91. g7+ {[%emt 0:00:02]} Ke7 {[%emt 0:00:01]} 92. g8=Q {[%emt 0:00:04]} 1-0

[Event "Gaprindashvili Cup Women I Stage 2020"]
[Site "Online"]
[Date "2020.11.04"]
[Round "9.13"]
[White "Zarkua, Anastasia"]
[Black "Kalandadze, Mariam"]
[Result "0-1"]
[ECO "E63"]
[WhiteElo "1124"]
[BlackElo "1147"]
[Annotator "NA"]
[PlyCount "104"]
[EventDate "2020.11.04"]
[EventType "swiss"]
[SourceTitle "playchess.com"]
[Source "ChessBase"]
[SourceQuality "1"]
[TimeControl "1500+5"]

1. d4 {[%emt 0:00:05]} Nf6 {[%emt 0:00:05]} 2. Nf3 {[%emt 0:00:09]} g6 {[%emt 0:00:10]} 3. c4 {[%emt 0:00:04]} Bg7 {[%emt 0:00:04]} 4. Nc3 {[%emt 0:00:02]} O-O {[%emt 0:00:09]} 5. g3 {[%emt 0:00:04]} d6 {[%emt 0:00:05]} 6. Bg2 {[%emt 0:00:03]} Nc6 {[%emt 0:00:16]} 7. O-O {[%emt 0:00:04]} a6 {[%emt 0:00:03]} 8. b3 {[%emt 0:00:14]} Bg4 {[%emt 0:00:16]} 9. Bb2 {[%emt 0:00:39]} Bxf3 {[%emt 0:01:17]} 10. Bxf3 {[%emt 0:00:05]} Qd7 {[%emt 0:00:46]} 11. Rc1 {[%emt 0:01:07]} Rab8 {[%emt 0:00:20]} 12. Qd2 {[%emt 0:00:54]} e5 {[%emt 0:00:08]} 13. e3 {[%emt 0:01:01]} Ne8 {[%emt 0:02:06]} 14. Nd5 {[%emt 0:00:57]} f5 {[%emt 0:01:40]} 15. Bg2 {[%emt 0:00:31]} Ne7 {[%emt 0:01:48]} 16. dxe5 {[%emt 0:00:27]} dxe5 {[%emt 0:00:32]} 17. Rfd1 {[%emt 0:00:07]} Qe6 {[%emt 0:00:49]} 18. Qb4 {[%emt 0:00:36]} Nc6 {[%emt 0:00:41]} 19. Qd2 {[%emt 0:00:33]} Kh8 {[%emt 0:00:24]} 20. Ba3 {[%emt 0:00:36]} Rf7 {[%emt 0:00:54]} 21. Qc2 {[%emt 0:00:19]} Rd8 {[%emt 0:02:22]} 22. Rd2 {[%emt 0:00:10]} Rfd7 {[%emt 0:00:07]} 23. Rcd1 {[%emt 0:00:20]} h6 {[%emt 0:03:06]} 24. h4 {[%emt 0:00:56]} Kh7 {[%emt 0:01:32]} 25. Bh3 {[%emt 0:00:44]} e4 {[%emt 0:00:34]} 26. Bb2 {[%emt 0:01:27]} Ne5 {[%emt 0:00:06]} 27. Bg2 {[%emt 0:00:28]} c6 {[%emt 0:00:27]} 28. Nf4 {[%emt 0:04:27]} Qe7 {[%emt 0:00:33]} 29. Rxd7 {[%emt 0:01:26]} Rxd7 {[%emt 0:00:05]} 30. Rxd7 {[%emt 0:02:08]} Qxd7 {[%emt 0:00:05]} 31. h5 {[%emt 0:01:12]} g5 {[%emt 0:01:08]} 32. Bxe5 {[%emt 0:00:14]} Bxe5 {[%emt 0:00:06]} 33. Ng6 {[%emt 0:00:09]} Bg7 {[%emt 0:00:20]} 34. Kh2 {[%emt 0:00:42]} Nf6 {[%emt 0:00:37]} 35. Qe2 {[%emt 0:00:09]} Qf7 {[%emt 0:01:43]} 36. Kg1 {[%emt 0:01:28]} Nxh5 {[%emt 0:01:19]} 37. Qxh5 {[%emt 0:00:04]} Qxg6 {[%emt 0:00:04]} 38. Qxg6+ {[%emt 0:00:05]} Kxg6 {[%emt 0:00:03]} 39. f3 {[%emt 0:00:11]} exf3 {[%emt 0:00:13]} 40. Bxf3 {[%emt 0:00:03]} g4 {[%emt 0:00:17]} 41. Be2 {[%emt 0:00:08]} Be5 {[%emt 0:00:02]} 42. Kf2 {[%emt 0:00:05]} Kg5 {[%emt 0:00:04]} 43. Bd3 {[%emt 0:00:11]} h5 {[%emt 0:00:10]} 44. e4 {[%emt 0:00:06]} f4 {[%emt 0:00:09]} 45. gxf4+ {[%emt 0:00:16]} Kxf4 {[%emt 0:00:06]} 46. a4 {[%emt 0:00:23]} a5 {[%emt 0:00:34]} 47. Bc2 {[%emt 0:00:25]} h4 {[%emt 0:00:04]} 48. Kg2 {[%emt 0:00:04]} h3+ {[%emt 0:00:07]} 49. Kh1 {[%emt 0:00:02]} g3 {[%emt 0:00:05]} 50. Kg1 {[%emt 0:00:02]} Bd4+ {[%emt 0:00:04]} 51. Kh1 {[%emt 0:00:04]} g2+ {[%emt 0:00:03]} 52. Kh2 {[%emt 0:00:04]} g1=Q+ {[%emt 0:00:03]} 0-1